fUST/lending_fUST_20250508
["ID","MTS","AMOUNT","RATE_DAILY","PERIOD"]
[360229435,1746639057017,-447.13,0.0001452,2]
[360229437,1746639057027,-431.59,0.0001452,2]
[360229439,1746639057038,-1050.56,0.0001452,2]
[360229441,1746639057048,-400.0,0.0001452,2]
[360229443,1746639057058,-400.0,0.0001452,2]
[360229445,1746639057068,-1132.68,0.0001452,2]
[360229447,1746639057078,-951.74,0.0001452,2]
[360229449,1746639057088,-400.0,0.0001452,2]
[360229451,1746639057097,-1074.42,0.0001452,2]
[360229453,1746639057107,-2026.62,0.0001452,2]
[360229455,1746639057117,-400.0,0.0001452,2]
[360229457,1746639057126,-400.0,0.0001452,2]
[360229459,1746639057136,-2073.28,0.0001452,2]
[360229461,1746639057147,-400.0,0.0001452,2]
[360229463,1746639057157,-400.0,0.0001452,2]
[360229465,1746639057166,-448.67,0.0001452,2]
[360229467,1746639057176,-400.0,0.0001452,2]
[360229469,1746639057186,-400.0,0.0001452,2]
[360229471,1746639057196,-1104.57,0.0001452,2]
[360229473,1746639057206,-630.39,0.0001452,2]
[360229475,1746639057217,-400.0,0.0001452,2]
[360229477,1746639057226,-564.07,0.0001452,2]
[360229479,1746639057236,-657.29,0.0001452,2]
[360229481,1746639057246,-1406.1,0.0001452,2]
[360229483,1746639057256,-400.0,0.0001452,2]
[360229485,1746639057265,-400.0,0.0001452,2]
[360229487,1746639057275,-1832.32,0.0001452,2]
[360229489,1746639057286,-1476.88,0.0001452,2]
[360229490,1746639057296,-400.0,0.0001452,2]
[360229491,1746639057305,-400.0,0.0001452,2]
[360229492,1746639057316,-400.0,0.0001452,2]
[360229493,1746639057326,-2129.41,0.0001452,2]
[360229494,1746639057336,-555.11,0.0001452,2]
[360229495,1746639057346,-1671.97,0.0001452,2]
[360229496,1746639057356,-400.0,0.0001452,2]
[360229497,1746639057366,-400.0,0.0001452,2]
[360229498,1746639057376,-1741.39,0.0001452,2]
[360229499,1746639057386,-400.0,0.0001452,2]
[360229500,1746639057395,-3397.7,0.0001452,2]
[360229501,1746639057406,-7075.67,0.0001452,2]
[360229502,1746639057415,-400.0,0.0001452,2]
[360229503,1746639057426,-400.0,0.0001452,2]
[360229504,1746639057436,-400.0,0.0001452,2]
[360229505,1746639057447,-400.0,0.0001452,2]
[360229506,1746639057457,-1304.64,0.0001452,2]
[360229507,1746639057467,-1182.47,0.0001452,2]
[360229508,1746639057476,-470.1,0.0001452,2]
[360229509,1746639057486,-400.0,0.0001452,2]
[360229510,1746639057496,-400.0,0.0001452,2]
[360229511,1746639057505,-400.0,0.0001452,2]
[360229512,1746639057515,-761.3,0.0001452,2]
[360229513,1746639057525,-1206.62,0.0001452,2]
[360229514,1746639057535,-400.0,0.0001452,2]
[360229515,1746639057545,-400.0,0.0001452,2]
[360229516,1746639057555,-7999.13,0.0001452,2]
[360229517,1746639057564,-400.0,0.0001452,2]
[360229518,1746639057575,-3137.6,0.0001452,2]
[360229519,1746639057585,-400.0,0.0001452,2]
[360229520,1746639057595,-400.0,0.0001452,2]
[360229521,1746639057605,-400.0,0.0001452,2]
[360229522,1746639057615,-400.0,0.0001452,2]
[360229523,1746639057625,-914.28,0.0001452,2]
[360229524,1746639057635,-463.34,0.0001452,2]
[360229525,1746639057645,-400.0,0.0001452,2]
[360229526,1746639057655,-456.16,0.0001452,2]
[360229527,1746639057665,-400.0,0.0001452,2]
[360229528,1746639057675,-400.0,0.0001452,2]
[360229529,1746639057685,-400.0,0.0001452,2]
[360229531,1746639057695,-400.0,0.0001452,2]
[360229533,1746639057704,-2209.23,0.0001452,2]
[360229535,1746639057713,-724.76,0.0001452,2]
[360229536,1746639057725,-400.0,0.0001452,2]
[360229537,1746639057735,-400.0,0.0001452,2]
[360229538,1746639057746,-406.07,0.0001452,2]
[360229539,1746639057757,-182.332948,0.0001452,2]
[360229540,1746639057767,-400.0,0.0001452,2]
[360229542,1746639057777,-1546.66,0.0001452,2]
[360229544,1746639057787,-182.332954,0.0001452,2]
[360229545,1746639057796,-412.61725794,0.0001452,2]
[360229547,1746639057806,-400.0,0.0001452,2]
[360229549,1746639057816,-400.0,0.0001452,2]
[360229552,1746639057826,-400.0,0.0001452,2]
[360229554,1746639057836,-2413.58,0.0001452,2]
[360229556,1746639057846,-400.0,0.0001452,2]
[360229558,1746639057855,-400.0,0.0001452,2]
[360229560,1746639057865,-683.51,0.0001452,2]
[360229561,1746639057874,-400.0,0.0001452,2]
[360229563,1746639057884,-7703.43,0.0001452,2]
[360229565,1746639057894,-400.0,0.0001452,2]
[360229566,1746639057904,-1170.09,0.0001452,2]
[360229568,1746639057919,-424.71,0.0001452,2]
[360229570,1746639057929,-3212.55,0.0001452,2]
[360229572,1746639057938,-400.0,0.0001452,2]
[360229574,1746639057947,-420.63,0.0001452,2]
[360229576,1746639057958,-1197.63,0.0001452,2]
[360229578,1746639057969,-400.0,0.0001452,2]
[360229580,1746639057979,-427.58,0.0001452,2]
[360229582,1746639057989,-1455.12,0.0001452,2]
[360229584,1746639057999,-2382.98,0.0001452,2]
[360229586,1746639058009,-815.53,0.0001452,2]
[360229588,1746639058019,-565.08,0.0001452,2]
[360229590,1746639058028,-1287.59,0.0001452,2]
[360229592,1746639058038,-4836.68,0.0001452,2]
[360229594,1746639058049,-2101.74,0.0001452,2]
[360229596,1746639058060,-2430.37,0.0001452,2]
[360229598,1746639058071,-400.0,0.0001452,2]
[360229600,1746639058080,-151.0,0.0001452,2]
[360229603,1746639058090,-400.0,0.0001452,2]
[360229605,1746639058100,-400.0,0.0001452,2]
[360229607,1746639058110,-434.01,0.0001452,2]
[360229609,1746639058120,-1387.9,0.0001452,2]
[360229611,1746639058130,-400.0,0.0001452,2]
[360229613,1746639058140,-400.0,0.0001452,2]
[360229615,1746639058150,-1836.96,0.0001452,2]
[360229617,1746639058161,-585.42,0.0001452,2]
[360229619,1746639058171,-2775.51,0.0001452,2]
[360229621,1746639058181,-400.0,0.0001452,2]
[360229623,1746639058190,-429.66,0.0001452,2]
[360229625,1746639058201,-3811.3,0.0001452,2]
[360229627,1746639058212,-708.96,0.0001452,2]
[360229629,1746639058221,-400.0,0.0001452,2]
[360229631,1746639058231,-400.0,0.0001452,2]
[360229633,1746639058241,-400.0,0.0001452,2]
[360229635,1746639058251,-2160.48,0.0001452,2]
[360229637,1746639058261,-546.73,0.0001452,2]
[360229639,1746639058271,-465.05643225,0.00014589,2]
[360229641,1746639058280,-574.99506,0.00014625,2]
[360229643,1746639058290,-500.0,0.00014672,2]
[360229645,1746639058300,-500.0,0.00014672,2]
[360229647,1746639058309,-500.0,0.00014672,2]
[360229649,1746639058319,-501.12430093,0.00014699,2]
[360229651,1746639058328,-873.44,0.00014794,2]
[360229653,1746639058337,-532.76,0.00014794,2]
[360229655,1746639058347,-400.0,0.00014794,2]
[360229657,1746639058356,-400.0,0.00014794,2]
[360229659,1746639058366,-400.0,0.00014794,2]
[360229661,1746639058376,-400.0,0.00014794,2]
[360229663,1746639058385,-401.56,0.00014794,2]
[360229665,1746639058395,-400.0,0.00014794,2]
[360229667,1746639058404,-400.0,0.00014794,2]
[360229669,1746639058414,-400.0,0.00014794,2]
[360229670,1746639058423,-400.0,0.00014794,2]
[360229671,1746639058433,-410.74,0.00014794,2]
[360229673,1746639058442,-594.63,0.00014794,2]
[360229675,1746639058452,-400.0,0.00014794,2]
[360229676,1746639058461,-400.0,0.00014794,2]
[360229677,1746639058471,-400.0,0.00014794,2]
[360229678,1746639058480,-400.0,0.00014794,2]
[360229679,1746639058489,-400.0,0.00014794,2]
[360229680,1746639058500,-400.0,0.00014794,2]
[360229681,1746639058510,-978.54,0.00014794,2]
[360229682,1746639058519,-400.99,0.00014794,2]
[360229683,1746639058530,-400.0,0.00014794,2]
[360229684,1746639058539,-400.0,0.00014794,2]
[360229685,1746639058549,-461.98,0.00014794,2]
[360229686,1746639058559,-2385.12,0.00014794,2]
[360229687,1746639058569,-400.0,0.00014794,2]
[360229688,1746639058579,-400.0,0.00014794,2]
[360229689,1746639058588,-400.0,0.00014794,2]
[360229690,1746639058598,-400.0,0.00014794,2]
[360229691,1746639058608,-400.0,0.00014794,2]
[360229692,1746639058617,-579.62,0.00014794,2]
[360229693,1746639058627,-400.0,0.00014794,2]
[360229694,1746639058637,-675.12,0.00014794,2]
[360229695,1746639058646,-275.24285815,0.00014794,2]
[360229696,1746639058657,-459.45,0.00014794,2]
[360229697,1746639058666,-431.46260763,0.00014794,2]
[360229698,1746639058675,-1309.84,0.00014794,2]
[360229699,1746639058686,-400.0,0.00014794,2]
[360229700,1746639058700,-887.5,0.00014794,2]
[360229701,1746639058710,-400.0,0.00014794,2]
[360229702,1746639058869,-400.0,0.00014794,2]
[360229703,1746639058879,-256.06822102,0.00014794,2]
[360229704,1746639058889,-400.0,0.00014794,2]
[360229705,1746639058899,-804.11,0.00014794,2]
[360229706,1746639058911,-400.0,0.00014794,2]
[360229707,1746639058922,-400.0,0.00014794,2]
[360229708,1746639058932,-602.35,0.00014794,2]
[360229709,1746639058942,-665.24,0.00014794,2]
[360229710,1746639058954,-299.77302729,0.00014794,2]
[360229711,1746639058964,-222.64186682,0.00014794,2]
[360229712,1746639058975,-721.38,0.00014794,2]
[360229713,1746639058986,-400.0,0.00014794,2]
[360229714,1746639058996,-650.11,0.00014794,2]
[360229715,1746639059006,-400.0,0.00014794,2]
[360229716,1746639059015,-400.0,0.00014794,2]
[360229717,1746639059024,-400.0,0.00014794,2]
[360229718,1746639059035,-400.0,0.00014794,2]
[360229719,1746639059044,-1393.39,0.00014794,2]
[360229720,1746639059055,-707.0,0.00014794,2]
[360229721,1746639059065,-400.0,0.00014794,2]
[360229722,1746639059076,-4093.54,0.00014794,2]
[360229723,1746639059087,-400.0,0.00014794,2]
[360229724,1746639059097,-1322.81,0.00014794,2]
[360229725,1746639059108,-372.246798,0.00014794,2]
[360229726,1746639059119,-400.0,0.00014794,2]
[360229727,1746639059129,-2617.26,0.00014794,2]
[360229728,1746639059140,-872.59,0.00014794,2]
[360229729,1746639059149,-461.53,0.00014794,2]
[360229730,1746639059160,-838.0,0.00014794,2]
[360229731,1746639059170,-400.0,0.00014794,2]
[360229732,1746639059181,-5975.97,0.00014794,2]
[360229733,1746639059193,-400.0,0.00014794,2]
[360229734,1746639059203,-726.4,0.00014794,2]
[360229735,1746639059213,-400.0,0.00014794,2]
[360229736,1746639059224,-1204.48,0.00014794,2]
[360229737,1746639059235,-1269.92,0.00014794,2]
[360229738,1746639059245,-400.0,0.00014794,2]
[360229739,1746639059254,-400.0,0.00014794,2]
[360229740,1746639059267,-700.94,0.00014794,2]
[360229741,1746639059277,-400.0,0.00014794,2]
[360229742,1746639059287,-400.0,0.00014794,2]
[360229743,1746639059297,-793.13,0.00014794,2]
[360229744,1746639059308,-410.06988284,0.00014794,2]
[360229745,1746639059319,-400.0,0.00014794,2]
[360229746,1746639059330,-331.86395312,0.00014794,2]
[360229747,1746639059340,-1356.62,0.00014794,2]
[360229748,1746639059351,-308.85948036,0.00014794,2]
[360229749,1746639059580,-91.14051964,0.00014794,2]
[360229750,1746639059590,-400.0,0.00014794,2]
[360229751,1746639059600,-400.0,0.00014794,2]
[360229752,1746639059611,-1249.82,0.00014794,2]
[360229753,1746639059622,-1102.39,0.00014794,2]
[360229754,1746639059631,-400.0,0.00014794,2]
[360229755,1746639059641,-699.38,0.00014794,2]
[360229756,1746639059651,-400.0,0.00014794,2]
[360229757,1746639059660,-796.53,0.00014794,2]
[360229758,1746639059670,-400.0,0.00014794,2]
[360229759,1746639059681,-1153.58,0.00014794,2]
[360229760,1746639059691,-628.91,0.00014794,2]
[360229761,1746639059703,-400.0,0.00014794,2]
[360229762,1746639059714,-453.93,0.00014794,2]
[360229763,1746639059725,-400.0,0.00014794,2]
[360229764,1746639059736,-908.97,0.00014794,2]
[360229765,1746639059747,-455.59,0.00014794,2]
[360229766,1746639059757,-400.0,0.00014794,2]
[360229767,1746639059767,-1585.44,0.00014794,2]
[360229768,1746639059777,-400.0,0.00014794,2]
[360229769,1746639059788,-400.0,0.00014794,2]
[360229770,1746639059798,-400.0,0.00014794,2]
[360229771,1746639059809,-3461.83,0.00014794,2]
[360229772,1746639059819,-513.0,0.00014794,2]
[360229773,1746639059829,-521.71,0.00014794,2]
[360229774,1746639059839,-627.24,0.00014794,2]
[360229775,1746639059848,-400.0,0.00014794,2]
[360229776,1746639059857,-294.73948036,0.00014794,2]
[360229777,1746639059870,-271.78051964,0.00014794,2]
[360229778,1746639059879,-405.1694356,0.00014794,2]
[360229779,1746639059889,-400.0,0.00014794,2]
[360229780,1746639059898,-400.0,0.00014794,2]
[360229781,1746639059908,-400.0,0.00014794,2]
[360229782,1746639059920,-1530.67,0.00014794,2]
[360229783,1746639059930,-400.0,0.00014794,2]
[360229784,1746639059940,-446.77264318,0.00014794,2]
[360229841,1746640232048,-171.64579223,0.0001288,2]
[360229843,1746640232059,-500.0,0.00013594,2]
[360229845,1746640232070,-300.0,0.00013594,2]
[360229847,1746640232080,-800.0,0.00013594,2]
[360229849,1746640232090,-2320.77286622,0.00013595,2]
[360229851,1746640232101,-500.0,0.00013595,2]
[360229853,1746640232111,-500.0,0.00013595,2]
[360229855,1746640232122,-500.0,0.00013595,2]
[360229858,1746640232133,-500.0,0.00013595,2]
[360229859,1746640232143,-500.0,0.00013595,2]
[360229861,1746640232153,-500.0,0.00013595,2]
[360229864,1746640232163,-500.0,0.00013595,2]
[360229866,1746640232173,-500.0,0.00013595,2]
[360229868,1746640232183,-500.0,0.00013595,2]
[360229870,1746640232193,-500.0,0.00013595,2]
[360229872,1746640232203,-500.0,0.00013595,2]
[360229874,1746640232213,-277.423919,0.00013595,2]
[360229875,1746640232224,-500.0,0.00013595,2]
[360229877,1746640232235,-500.0,0.00013595,2]
[360229878,1746640232244,-500.0,0.00013595,2]
[360229881,1746640232254,-401.78426686,0.00013598,2]
[360229884,1746640232264,-842.118303,0.00013644,2]
[360229888,1746640232274,-160.0,0.00013644,2]
[360229891,1746640232284,-313.97932589,0.00013644,2]
[360229894,1746640232295,-160.0,0.00013644,2]
[360229898,1746640232305,-160.0,0.00013644,2]
[360229900,1746640232315,-160.0,0.00013644,2]
[360229904,1746640232326,-160.0,0.00013644,2]
[360229907,1746640232336,-160.0,0.00013644,2]
[360229908,1746640232349,-160.0,0.00013644,2]
[360229910,1746640232359,-212.07737469,0.00013644,2]
[360229912,1746640232369,-160.0,0.00013644,2]
[360229914,1746640232379,-401.78426685,0.00013665,2]
[360229916,1746640232389,-151.0,0.0001369,2]
[360229918,1746640232400,-151.46602498,0.0001369,2]
[360229920,1746640232411,-197.05513197,0.0001369,2]
[360229922,1746640232420,-207.4,0.0001369,2]
[360229924,1746640232431,-367.32052567,0.00013697,2]
[360229926,1746640232441,-400.0,0.00013698,2]
[360229928,1746640232451,-400.0,0.00013698,2]
[360229930,1746640232461,-400.0,0.00013698,2]
[360229932,1746640232471,-400.0,0.00013698,2]
[360229934,1746640232481,-571.09,0.00013698,2]
[360229936,1746640232491,-307.54950482,0.00013698,2]
[360229938,1746640232501,-400.0,0.00013698,2]
[360229940,1746640232512,-296.04800279,0.00013698,2]
[360229942,1746640232525,-103.95199721,0.00013698,2]
[360229944,1746640232535,-400.0,0.00013698,2]
[360229946,1746640232545,-453.91,0.00013698,2]
[360229949,1746640232556,-429.61,0.00013698,2]
[360229951,1746640232566,-400.0,0.00013698,2]
[360229952,1746640232576,-400.0,0.00013698,2]
[360229954,1746640232586,-400.0,0.00013698,2]
[360229956,1746640232596,-403.95618744,0.00013698,2]
[360229958,1746640232606,-872.73,0.00013698,2]
[360229960,1746640232617,-400.0,0.00013698,2]
[360229962,1746640232627,-400.0,0.00013698,2]
[360229964,1746640232637,-400.0,0.00013698,2]
[360229966,1746640232647,-400.0,0.00013698,2]
[360229968,1746640232657,-400.0,0.00013698,2]
[360229971,1746640232669,-400.0,0.00013698,2]
[360229972,1746640232679,-400.0,0.00013698,2]
[360229974,1746640232689,-400.0,0.00013698,2]
[360229976,1746640232700,-1888.22,0.00013698,2]
[360229978,1746640232710,-400.0,0.00013698,2]
[360229980,1746640232720,-400.0,0.00013698,2]
[360229982,1746640232730,-3176.09,0.00013698,2]
[360229984,1746640232740,-400.0,0.00013698,2]
[360229986,1746640232750,-400.0,0.00013698,2]
[360229988,1746640232759,-455.6,0.00013698,2]
[360229990,1746640232769,-400.0,0.00013698,2]
[360229992,1746640232779,-400.0,0.00013698,2]
[360229994,1746640232789,-400.0,0.00013698,2]
[360229996,1746640232798,-400.0,0.00013698,2]
[360229998,1746640232809,-400.0,0.00013698,2]
[360230000,1746640232819,-400.0,0.00013698,2]
[360230002,1746640232829,-400.0,0.00013698,2]
[360230004,1746640232839,-1036.95,0.00013698,2]
[360230006,1746640232849,-400.0,0.00013698,2]
[360230008,1746640232860,-400.0,0.00013698,2]
[360230010,1746640232869,-400.0,0.00013698,2]
[360230012,1746640232879,-400.0,0.00013698,2]
[360230015,1746640232890,-400.0,0.00013698,2]
[360230017,1746640232900,-674.14,0.00013698,2]
[360230019,1746640232910,-702.6,0.00013698,2]
[360230020,1746640232919,-458.86,0.00013698,2]
[360230022,1746640232929,-400.0,0.00013698,2]
[360230024,1746640232939,-400.0,0.00013698,2]
[360230026,1746640232949,-400.0,0.00013698,2]
[360230028,1746640232959,-534.47,0.00013698,2]
[360230030,1746640232968,-636.12354961,0.00013698,2]
[360230033,1746640232981,-212.07645039,0.00013698,2]
[360230034,1746640232991,-400.0,0.00013698,2]
[360230035,1746640233001,-400.0,0.00013698,2]
[360230036,1746640233010,-476.86,0.00013698,2]
[360230037,1746640233020,-400.0,0.00013698,2]
[360230038,1746640233030,-573.78,0.00013698,2]
[360230039,1746640233040,-400.0,0.00013698,2]
[360230040,1746640233050,-1103.1,0.00013698,2]
[360230041,1746640233060,-400.0,0.00013698,2]
[360230042,1746640233070,-400.0,0.00013698,2]
[360230043,1746640233080,-400.0,0.00013698,2]
[360230044,1746640233090,-400.0,0.00013698,2]
[360230045,1746640233100,-559.71,0.00013698,2]
[360230046,1746640233111,-1047.22,0.00013698,2]
[360230047,1746640233121,-526.65,0.00013698,2]
[360230048,1746640233132,-400.0,0.00013698,2]
[360230049,1746640233142,-400.0,0.00013698,2]
[360230050,1746640233152,-400.0,0.00013698,2]
[360230051,1746640233163,-400.0,0.00013698,2]
[360230052,1746640233175,-5023.69,0.00013698,2]
[360230053,1746640233186,-400.0,0.00013698,2]
[360230054,1746640233198,-400.0,0.00013698,2]
[360230055,1746640233208,-2072.0,0.00013698,2]
[360230056,1746640233219,-400.0,0.00013698,2]
[360230057,1746640233230,-400.0,0.00013698,2]
[360230058,1746640233241,-3240.72,0.00013698,2]
[360230059,1746640233252,-690.8,0.00013698,2]
[360230061,1746640233263,-400.0,0.00013698,2]
[360230063,1746640233274,-400.0,0.00013698,2]
[360230065,1746640233284,-400.0,0.00013698,2]
[360230067,1746640233295,-400.0,0.00013698,2]
[360230069,1746640233306,-400.0,0.00013698,2]
[360230071,1746640233316,-575.07,0.00013698,2]
[360230073,1746640233327,-1073.99,0.00013698,2]
[360230075,1746640233337,-1005.35,0.00013698,2]
[360230077,1746640233351,-953.55,0.00013698,2]
[360230079,1746640233362,-989.44,0.00013698,2]
[360230081,1746640233372,-400.0,0.00013698,2]
[360230082,1746640233383,-554.91,0.00013698,2]
[360230085,1746640233393,-400.0,0.00013698,2]
[360230087,1746640233404,-400.0,0.00013698,2]
[360230089,1746640233415,-913.25,0.00013698,2]
[360230091,1746640233426,-400.0,0.00013698,2]
[360230093,1746640233437,-400.0,0.00013698,2]
[360230095,1746640233447,-691.47,0.00013698,2]
[360230097,1746640233457,-719.6,0.00013698,2]
[360230099,1746640233468,-400.0,0.00013698,2]
[360230101,1746640233478,-553.68,0.00013698,2]
[360230103,1746640233488,-487.85,0.00013698,2]
[360230105,1746640233498,-1255.14,0.00013698,2]
[360230106,1746640233509,-497.89,0.00013698,2]
[360230108,1746640233519,-400.0,0.00013698,2]
[360230110,1746640233529,-2740.61,0.00013698,2]
[360230112,1746640233539,-400.0,0.00013698,2]
[360230114,1746640233550,-496.56,0.00013698,2]
[360230116,1746640233560,-400.0,0.00013698,2]
[360230118,1746640233570,-400.0,0.00013698,2]
[360230120,1746640233579,-448.5,0.00013698,2]
[360230122,1746640233589,-400.0,0.00013698,2]
[360230124,1746640233600,-406.12,0.00013698,2]
[360230126,1746640233610,-400.0,0.00013698,2]
[360230128,1746640233621,-400.0,0.00013698,2]
[360230130,1746640233631,-706.87,0.00013698,2]
[360230132,1746640233642,-413.02,0.00013698,2]
[360230134,1746640233653,-420.64822429,0.00013698,2]
[360230136,1746640233663,-400.0,0.00013698,2]
[360230138,1746640233674,-400.0,0.00013698,2]
[360230140,1746640233685,-212.49449134,0.00013698,2]
[360230142,1746640233695,-400.0,0.00013698,2]
[360230144,1746640233706,-400.0,0.00013698,2]
[360230146,1746640233717,-313.29889629,0.00013698,2]
[360230148,1746640233726,-400.0,0.00013698,2]
[360230150,1746640233737,-421.77,0.00013698,2]
[360230152,1746640233747,-249.63406954,0.00013698,2]
[360230327,1746640238012,-470.98960004,0.00013698,2]
[360230382,1746640240632,-174.72633042,0.00013698,2]
[360230384,1746640240643,-400.0,0.00013698,2]
[360230386,1746640240653,-492.47601525,0.00013698,2]
[360230606,1746640243264,-160.0,0.00013644,2]
[360230609,1746640243274,-1235.26398475,0.00013698,2]
[360230611,1746640243284,-579.16,0.00013698,2]
[360230612,1746640243293,-1688.85,0.00013698,2]
[360230615,1746640243303,-943.9,0.00013698,2]
[360230617,1746640243313,-400.0,0.00013698,2]
[360230619,1746640243322,-400.0,0.00013698,2]
[360230620,1746640243332,-400.0,0.00013698,2]
[360230622,1746640243341,-400.0,0.00013698,2]
[360230625,1746640243353,-443.4128279,0.00013698,2]
[360230628,1746640243363,-920.47,0.00013698,2]
[360230631,1746640243373,-400.0,0.00013698,2]
[360230634,1746640243382,-400.0,0.00013698,2]
[360230636,1746640243392,-525.32,0.00013698,2]
[360230638,1746640243403,-547.74,0.00013698,2]
[360230640,1746640243414,-1171.75,0.00013698,2]
[360230642,1746640243426,-400.0,0.00013698,2]
[360230644,1746640243435,-470.06,0.00013698,2]
[360230646,1746640243446,-401.25,0.00013698,2]
[360230648,1746640243455,-400.0,0.00013698,2]
[360230650,1746640243464,-400.0,0.00013698,2]
[360230652,1746640243473,-1393.3,0.00013698,2]
[360230654,1746640243485,-400.0,0.00013698,2]
[360230656,1746640243495,-400.0,0.00013698,2]
[360230658,1746640243504,-1774.51,0.00013698,2]
[360230660,1746640243515,-1230.73,0.00013698,2]
[360230662,1746640243524,-1451.16,0.00013698,2]
[360230664,1746640243534,-400.0,0.00013698,2]
[360230666,1746640243543,-462.59,0.00013698,2]
[360230668,1746640243553,-470.75,0.00013698,2]
[360230670,1746640243563,-2831.41,0.00013698,2]
[360230672,1746640243572,-400.0,0.00013698,2]
[360230674,1746640243581,-466.68787073,0.00013698,2]
[360230676,1746640243591,-400.0,0.00013698,2]
[360230678,1746640243600,-400.0,0.00013698,2]
[360230680,1746640243609,-400.0,0.00013698,2]
[360230682,1746640243619,-1087.2,0.00013698,2]
[360230684,1746640243628,-400.0,0.00013698,2]
[360230686,1746640243638,-417.2290611,0.00013698,2]
[360230688,1746640243648,-400.0,0.00013698,2]
[360230690,1746640243658,-400.0,0.00013698,2]
[360230692,1746640243668,-985.39,0.00013698,2]
[360230694,1746640243677,-400.0,0.00013698,2]
[360230696,1746640243687,-400.0,0.00013698,2]
[360230698,1746640243696,-400.0,0.00013698,2]
[360230700,1746640243705,-1526.93,0.00013698,2]
[360230702,1746640243715,-400.0,0.00013698,2]
[360230704,1746640243724,-400.0,0.00013698,2]
[360230706,1746640243734,-1005.52,0.00013698,2]
[360230707,1746640243743,-634.41,0.00013698,2]
[360230709,1746640243753,-400.0,0.00013698,2]
[360230711,1746640243763,-2346.37599176,0.00013698,2]
[360230953,1746640246349,-268.28400824,0.00013698,2]
[360230955,1746640246359,-23.11599163,0.00013698,2]
[360230965,1746640246452,-376.88400837,0.00013698,2]
[360230967,1746640246462,-400.0,0.00013698,2]
[360230969,1746640246471,-400.0,0.00013698,2]
[360230971,1746640246481,-400.0,0.00013698,2]
[360230973,1746640246490,-400.0,0.00013698,2]
[360230975,1746640246499,-761.9,0.00013698,2]
[360230977,1746640246509,-400.0,0.00013698,2]
[360230979,1746640246519,-521.92450957,0.00013698,2]
[360230981,1746640246528,-400.0,0.00013698,2]
[360230983,1746640246537,-1841.03,0.00013698,2]
[360230985,1746640246547,-400.0,0.00013698,2]
[360230986,1746640246557,-400.0,0.00013698,2]
[360230988,1746640246567,-400.0,0.00013698,2]
[360230990,1746640246577,-5896.4,0.00013698,2]
[360230992,1746640246586,-425.64189656,0.00013698,2]
[360230994,1746640246595,-1288.88,0.00013698,2]
[360230996,1746640246605,-2011.32,0.00013698,2]
[360230998,1746640246615,-400.0,0.00013698,2]
[360231000,1746640246624,-178.00837814,0.00013698,2]
[360231002,1746640246634,-510.88,0.00013698,2]
[360231004,1746640246643,-428.48703233,0.00013698,2]
[360231006,1746640246652,-400.0,0.00013698,2]
[360231008,1746640246662,-400.0,0.00013698,2]